fUSD/lending_fUSD_20240725
["ID","MTS","AMOUNT","RATE_DAILY","PERIOD"]
[333197303,1721937038549,-352.52983687,8.883e-05,2]
[333197483,1721937040346,-1984.518,8.883e-05,2]
[333197494,1721937040612,-364.25870048,8.883e-05,2]
[333197506,1721937040722,-5113.39397044,8.883e-05,2]
[333197508,1721937040731,-151.90435085,8.906e-05,2]
[333197510,1721937040740,-151.174157,8.923e-05,2]
[333197512,1721937040750,-160.3085144,8.933e-05,2]
[333197514,1721937040759,-250.0,8.953e-05,2]
[333197516,1721937040768,-1000.0,8.961e-05,2]
[333197518,1721937040777,-189.6,8.98e-05,2]
[333197520,1721937040787,-166.53619765,9.114e-05,2]
[333197522,1721937040796,-239.51300257,9.119e-05,2]
[333197524,1721937040806,-153.59883877,9.128e-05,2]
[333197526,1721937040815,-155.27583559,9.28e-05,2]
[333197528,1721937040826,-151.174157,9.308e-05,2]
[333197530,1721937040836,-260.88729792,9.342e-05,2]
[333197532,1721937040845,-161.70970842,9.503e-05,2]
[333197534,1721937040855,-260.88729792,9.534e-05,2]
[333197536,1721937040864,-160.3085144,9.536e-05,2]
[333197538,1721937040874,-157.69581596,9.543e-05,2]
[333197539,1721937040884,-153.71132585,9.585e-05,2]
[333197540,1721937040893,-151.71219966,9.588e-05,2]
[333197541,1721937040903,-1740.36,9.67e-05,2]
[333197542,1721937040912,-260.88729792,9.707e-05,2]
[333197543,1721937040921,-239.51300257,9.834e-05,2]
[333197545,1721937040930,-239.51300257,9.925e-05,2]
[333197547,1721937040940,-151.90435085,0.00010011,2]
[333197549,1721937040949,-153.71132585,0.00010028,2]
[333197551,1721937040958,-1000.0,0.00010081,2]
[333197552,1721937040968,-151.40003661,0.00010132,2]
[333197553,1721937040977,-833.79,0.00010141,2]
[333197554,1721937040987,-833.79,0.00010141,2]
[333197555,1721937040996,-833.79,0.00010141,2]
[333197556,1721937041005,-833.79,0.00010141,2]
[333197557,1721937041015,-833.79,0.00010141,2]
[333197558,1721937041024,-558.78,0.00010141,2]
[333197559,1721937041033,-151.71219966,0.00010175,2]
[333197560,1721937041042,-259.94,0.00010192,2]
[333197561,1721937041052,-160.3085144,0.00010211,2]
[333197562,1721937041062,-151.174157,0.00010221,2]
[333197563,1721937041071,-151.71219966,0.00010291,2]
[333197564,1721937041080,-153.59883877,0.00010293,2]
[333197565,1721937041090,-156.17694935,0.00010324,2]
[333197566,1721937041099,-649.74589569,0.000104,2]
[333197779,1721937043347,-51.29960431,0.000104,2]
[333197782,1721937043357,-260.88729792,0.00010406,2]
[333197784,1721937043366,-39.05905735,0.00010418,2]
[333197788,1721937043400,-1246.09094265,0.00010418,2]
[333197790,1721937043410,-160.3085144,0.00010452,2]
[333197792,1721937043419,-260.88729792,0.00010513,2]
[333197813,1721937043622,-151.174157,0.0001056,2]
[333197815,1721937043637,-239.51300257,0.00010574,2]
[333197817,1721937043647,-500.0,0.00010581,2]
[333197819,1721937043658,-160.3085144,0.00010608,2]
[333197821,1721937043668,-163.9867549,0.00010634,2]
[333197823,1721937043677,-160.3085144,0.00010682,2]
[333197825,1721937043687,-160.3085144,0.00010759,2]
[333197827,1721937043697,-153.71132585,0.00010817,2]
[333197829,1721937043706,-260.88729792,0.00010818,2]
[333197831,1721937043716,-151.24816226,0.00010824,2]
[333197833,1721937043731,-166.0,0.00010848,2]
[333197834,1721937043741,-621.0,0.00010848,2]
[333197835,1721937043751,-841.197,0.00010848,2]
[333197836,1721937043760,-450.0,0.00010848,2]
[333197837,1721937043771,-150.0,0.00010848,2]
[333197838,1721937043781,-154.0,0.00010848,2]
[333197839,1721937043791,-215.0,0.00010848,2]
[333197840,1721937043800,-5119.0,0.00010848,2]
[333197841,1721937043810,-1202.0,0.00010848,2]
[333197842,1721937043820,-209.076,0.00010848,2]
[333197843,1721937043831,-163.0,0.00010848,2]
[333197844,1721937043841,-163.188,0.00010848,2]
[333197845,1721937043850,-5824.0,0.00010848,2]
[333197846,1721937043859,-156.085,0.00010848,2]
[333197847,1721937043869,-150.218,0.00010848,2]
[333197848,1721937043878,-1669.0,0.00010848,2]
[333197849,1721937043888,-38351.585,0.00010848,2]
[333197850,1721937043898,-151.177,0.00010848,2]
[333197852,1721937043907,-1072.0,0.00010848,2]
[333197854,1721937043917,-151.71219966,0.0001085,2]
[333197856,1721937043926,-3000.0,0.0001089,2]
[333197857,1721937043935,-7500.0,0.000109,2]
[333197859,1721937043944,-1832.10231925,0.000109,2]
[333197861,1721937043954,-1228.91882812,0.000109,2]
[333197863,1721937043964,-166.53267703,0.000109,2]
[333197865,1721937043975,-166.532677,0.000109,2]
[333197867,1721937043985,-166.532677,0.000109,2]
[333197869,1721937043994,-166.532677,0.000109,2]
[333197871,1721937044003,-1246.58689942,0.000109,2]
[333197873,1721937044012,-500.0,0.00010911,2]
[333197875,1721937044022,-151.174157,0.00010917,2]
[333197877,1721937044031,-153.71132585,0.00010928,2]
[333197878,1721937044040,-160.3085144,0.0001095,2]
[333197880,1721937044049,-260.88729792,0.00010955,2]
[333197881,1721937044058,-181.56999601,0.00010958,2]
[333197882,1721937044068,-300.34418275,0.00010958,2]
[333197883,1721937044078,-412.49430383,0.00010958,2]
[333197884,1721937044088,-1049.01515788,0.00010958,2]
[333197885,1721937044098,-500.0,0.00010958,2]
[333197886,1721937044107,-500.0,0.00010958,2]
[333197888,1721937044117,-500.0,0.00010958,2]
[333197889,1721937044126,-500.0,0.00010958,2]
[333197890,1721937044135,-500.0,0.00010958,2]
[333197891,1721937044145,-500.0,0.00010958,2]
[333197892,1721937044154,-565.46275502,0.00010958,2]
[333197893,1721937044164,-201.21480326,0.00010958,2]
[333197894,1721937044173,-191.85217756,0.00010958,2]
[333197895,1721937044183,-500.0,0.00010958,2]
[333197896,1721937044192,-1001.86,0.00010958,2]
[333197897,1721937044201,-1001.86,0.00010958,2]
[333197898,1721937044211,-1001.86,0.00010958,2]
[333197899,1721937044222,-1001.86,0.00010958,2]
[333197900,1721937044231,-1001.86,0.00010958,2]
[333197901,1721937044241,-1001.86,0.00010958,2]
[333197902,1721937044250,-1001.86,0.00010958,2]
[333197903,1721937044260,-1001.86,0.00010958,2]
[333197904,1721937044269,-1001.86,0.00010958,2]
[333197905,1721937044278,-1001.86,0.00010958,2]
[333197906,1721937044288,-1001.86,0.00010958,2]
[333197907,1721937044297,-1001.86,0.00010958,2]
[333197908,1721937044306,-1001.86,0.00010958,2]
[333197909,1721937044316,-1001.86,0.00010958,2]
[333197910,1721937044326,-1001.86,0.00010958,2]
[333197911,1721937044335,-1001.86,0.00010958,2]
[333197912,1721937044345,-1001.86,0.00010958,2]
[333197913,1721937044354,-1001.86,0.00010958,2]
[333197914,1721937044366,-1001.86,0.00010958,2]
[333197915,1721937044375,-1001.86,0.00010958,2]
[333197916,1721937044386,-1001.86,0.00010958,2]
[333197917,1721937044395,-1001.86,0.00010958,2]
[333197918,1721937044405,-1001.86,0.00010958,2]
[333197919,1721937044415,-1002.01,0.00010958,2]
[333197920,1721937044425,-505.79183011,0.00010958,2]
[333197921,1721937044435,-500.0,0.00010958,2]
[333197922,1721937044445,-500.0,0.00010959,2]
[333197923,1721937044454,-500.0,0.00010959,2]
[333197924,1721937044466,-150.0,0.00010959,2]
[333197925,1721937044476,-250.0,0.00010959,2]
[333197926,1721937044486,-446.1,0.00010959,2]
[333197927,1721937044495,-371.75,0.00010959,2]
[333197928,1721937044505,-309.79,0.00010959,2]
[333197929,1721937044514,-156.17694935,0.00010969,2]
[333197930,1721937044524,-9410.2816209,0.00010994,2]
[333197931,1721937044533,-151.24816226,0.00010994,2]
[333197932,1721937044542,-558.2210348,0.00010999,2]
[333197933,1721937044552,-387.02289021,0.00010999,2]
[333197934,1721937044563,-500.0,0.00010999,2]
[333197935,1721937044573,-279.78,0.00010999,2]
[333197936,1721937044583,-500.0,0.00010999,2]
[333197937,1721937044592,-500.0,0.00010999,2]
[333197938,1721937044601,-500.0,0.00010999,2]
[333197939,1721937044612,-500.0,0.00010999,2]
[333197940,1721937044622,-302.03927896,0.00010999,2]
[333197941,1721937044632,-500.0,0.00010999,2]
[333197942,1721937044643,-500.0,0.00010999,2]
[333197943,1721937044652,-500.0,0.00010999,2]
[333197944,1721937044662,-500.0,0.00010999,2]
[333197945,1721937044673,-500.0,0.00010999,2]
[333197946,1721937044683,-254.61,0.00010999,2]
[333197947,1721937044692,-565.42924443,0.00010999,2]
[333197948,1721937044702,-801.39,0.00010999,2]
[333197949,1721937044711,-801.39,0.00010999,2]
[333197950,1721937044722,-801.39,0.00010999,2]
[333197951,1721937044732,-801.39,0.00010999,2]
[333197952,1721937044741,-801.39,0.00010999,2]
[333197953,1721937044751,-801.39,0.00010999,2]
[333197954,1721937044760,-801.39,0.00010999,2]
[333197955,1721937044770,-801.39,0.00010999,2]
[333197956,1721937044780,-801.39,0.00010999,2]
[333197957,1721937044789,-801.39,0.00010999,2]
[333197958,1721937044799,-801.39,0.00010999,2]
[333197959,1721937044808,-801.39,0.00010999,2]
[333197960,1721937044817,-801.39,0.00010999,2]
[333197961,1721937044828,-801.39,0.00010999,2]
[333197962,1721937044838,-801.39,0.00010999,2]
[333197963,1721937044847,-801.39,0.00010999,2]
[333197964,1721937044857,-801.39,0.00010999,2]
[333197965,1721937044868,-801.39,0.00010999,2]
[333197966,1721937044878,-801.39,0.00010999,2]
[333197967,1721937044888,-68.13853629,0.00010999,2]
[333197968,1721937044927,-733.25146371,0.00010999,2]
[333197969,1721937044937,-801.39,0.00010999,2]
[333197970,1721937044946,-409.16187594,0.00010999,2]
[333197987,1721937046581,-340.19,0.00010999,2]
[333197988,1721937046658,-52.03812406,0.00010999,2]
[333197989,1721937046669,-801.39,0.00010999,2]
[333197990,1721937046680,-226.88435154,0.00010999,2]
[333198035,1721938231562,-1197.88,8.219e-05,2]
[333198036,1721938231572,-5650.0,8.485e-05,2]
[333198037,1721938231582,-154.58377367,9.001e-05,2]
[333198038,1721938231591,-187.7847652,9.015e-05,2]
[333198039,1721938231601,-196.63618565,9.067e-05,2]
[333198040,1721938231611,-166.66666665,9.151e-05,2]
[333198041,1721938231620,-155.01311997,9.154e-05,2]
[333198042,1721938231630,-153.61828871,9.185e-05,2]
[333198043,1721938231639,-196.63618565,9.207e-05,2]
[333198044,1721938231649,-189.11,9.208e-05,2]
[333198045,1721938231659,-153.18800048,9.215e-05,2]
[333198046,1721938231668,-151.71219966,9.232e-05,2]
[333198047,1721938231678,-500.0,9.237e-05,2]
[333198048,1721938231688,-21801.86,9.257e-05,2]
[333198049,1721938231699,-250.0,9.269e-05,2]
[333198050,1721938231709,-151.90435085,9.297e-05,2]
[333198051,1721938231719,-1000.0,9.299e-05,2]
[333198052,1721938231729,-187.7847652,9.411e-05,2]
[333198053,1721938231739,-156.17694936,9.454e-05,2]
[333198054,1721938231748,-187.7847652,9.46e-05,2]
[333198055,1721938231758,-151.71219966,9.46e-05,2]
[333198056,1721938231768,-151.71219966,9.469e-05,2]
[333198057,1721938231778,-156.17694936,9.516e-05,2]
[333198058,1721938231788,-153.18800048,9.535e-05,2]
[333198059,1721938231798,-150.0,9.535e-05,2]
[333198060,1721938231808,-187.7847652,9.579e-05,2]
[333198061,1721938231817,-154.58377367,9.588e-05,2]
[333198062,1721938231827,-154.58377367,9.621e-05,2]
[333198063,1721938231836,-187.7847652,9.657e-05,2]
[333198064,1721938231846,-161.70970843,9.667e-05,2]
[333198065,1721938231856,-2354.28,9.67e-05,2]
[333198066,1721938231866,-499.99,9.67e-05,2]
[333198067,1721938231875,-590.08,9.67e-05,2]
[333198068,1721938231884,-1821.71,9.67e-05,2]
[333198069,1721938231894,-3103.29,9.67e-05,2]
[333198070,1721938231903,-151.71219966,9.826e-05,2]
[333198071,1721938231912,-155.1578413,9.829e-05,2]
[333198072,1721938231922,-196.63618565,9.883e-05,2]
[333198073,1721938231932,-187.7847652,9.896e-05,2]
[333198074,1721938231944,-600.0,9.9e-05,3]
[333198075,1721938231957,-154.58377367,9.909e-05,2]
[333198076,1721938231967,-151.43691195,9.911e-05,2]
[333198077,1721938231977,-1200.0,0.0001,3]
[333198078,1721938231986,-2010.0,0.0001,2]
[333198079,1721938231996,-187.7847652,0.00010048,2]
[333198080,1721938232006,-211.64,0.00010055,2]
[333198081,1721938232016,-167.12965064,0.00010087,2]
[333198082,1721938232026,-1900.0,0.000101,3]
[333198083,1721938232036,-151.90435085,0.00010126,2]
[333198084,1721938232046,-196.63618565,0.00010182,2]
[333198085,1721938232055,-165.34,0.00010192,2]
[333198086,1721938232064,-150.0,0.00010192,2]
[333198087,1721938232075,-165.34,0.00010192,2]
[333198088,1721938232084,-165.02,0.00010192,2]
[333198089,1721938232094,-2500.0,0.000102,3]
[333198090,1721938232103,-156.17694936,0.00010226,2]
[333198091,1721938232114,-839.8,0.00010241,2]
[333198092,1721938232124,-833.79,0.00010241,2]
[333198093,1721938232133,-833.79,0.00010241,2]
[333198094,1721938232142,-833.79,0.00010241,2]
[333198095,1721938232152,-833.79,0.00010241,2]
[333198096,1721938232161,-833.79,0.00010241,2]
[333198097,1721938232170,-833.79,0.00010241,2]
[333198098,1721938232180,-833.79,0.00010241,2]
[333198099,1721938232193,-151.174157,0.00010247,2]
[333198100,1721938232204,-274.77,0.0001028,2]
[333198101,1721938232213,-3200.0,0.000103,3]
[333198102,1721938232224,-155.1578413,0.00010314,2]
[333198103,1721938232233,-300.0,0.00010378,2]
[333198104,1721938232242,-330.62,0.00010378,2]
[333198105,1721938232251,-300.0,0.00010378,2]
[333198106,1721938232261,-600.0,0.000104,3]
[333198107,1721938232270,-1197.88,0.00010434,2]
[333198108,1721938232279,-1000.0,0.00010461,2]
[333198109,1721938232288,-153.18800048,0.00010492,2]
[333198110,1721938232297,-151.174157,0.000105,2]
[333198111,1721938232307,-600.0,0.000105,3]
[333198112,1721938232317,-166.66666666,0.00010554,2]
[333198113,1721938232326,-196.63618565,0.00010565,2]
[333198114,1721938232335,-196.63618565,0.00010568,2]
[333198115,1721938232345,-187.7847652,0.00010574,2]
[333198116,1721938232355,-151.90435085,0.00010586,2]
[333198117,1721938232364,-600.0,0.000106,3]
[333198118,1721938232373,-162.32691962,0.00010626,2]
[333198119,1721938232383,-156.17694936,0.00010648,2]
[333198120,1721938232391,-156.17694936,0.0001069,2]
[333198121,1721938232401,-600.0,0.000107,3]
[333198122,1721938232410,-187.7847652,0.00010707,2]
[333198123,1721938232419,-151.43691195,0.00010766,2]
[333198124,1721938232428,-151.174157,0.00010795,2]
[333198125,1721938232437,-1140.0,0.000108,3]
[333198126,1721938232455,-105.97851184,0.00010848,2]
[333198127,1721938232494,-44.02148816,0.00010848,2]
[333198128,1721938232503,-3861.30305786,0.0001089,2]
[333198135,1721938238097,-282.29427162,0.0001089,2]
[333198136,1721938238151,-1681.53176846,0.0001089,2]
[333198137,1721938238206,-36.87090206,0.0001089,2]
[333198138,1721938238216,-1000.0,0.00010899,2]
[333198139,1721938238226,-872.3382,0.00010899,2]
[333198140,1721938238237,-6568.4553,0.00010899,2]
[333198141,1721938238247,-492.003,0.000109,2]
[333198142,1721938238256,-338.7468,0.000109,2]
[333198143,1721938238266,-2.08699794,0.000109,2]
[333198144,1721938238279,-2071.16340206,0.000109,2]
[333198145,1721938238288,-488.8288,0.000109,2]
[333198146,1721938238299,-1000.0,0.000109,2]
[333198147,1721938238309,-7500.0,0.000109,2]
[333198148,1721938238318,-153.18800048,0.0001091,2]
[333198149,1721938238328,-153.07808265,0.00010936,2]
[333198150,1721938238338,-500.0,0.00010959,2]
[333198151,1721938238347,-260.41804365,0.00010959,2]
[333198152,1721938238359,-239.58195635,0.00010959,2]
[333198153,1721938238368,-250.0,0.00010959,2]
[333198154,1721938238377,-150.0,0.00010959,2]
[333198155,1721938238387,-111.46738992,0.00010959,2]
[333198156,1721938238398,-146.69261008,0.00010959,2]
[333198157,1721938238407,-215.13,0.00010959,2]
[333198158,1721938238416,-54.04342538,0.00010998,2]
[333198160,1721938238428,-125.80205682,0.00010998,2]
[333198161,1721938238437,-289.0479823,0.00010998,2]
[333198163,1721938238447,-667.968333,0.00010998,2]
[333198165,1721938238456,-55.12683991,0.00010998,2]
[333198232,1721938240209,-892.62682225,0.00010998,2]
[333198233,1721938240225,-5853.55478404,0.00010998,2]
[333198234,1721938240235,-181.56999601,0.00010999,2]
[333198235,1721938240245,-1049.01515788,0.00010999,2]
[333198236,1721938240255,-412.49430383,0.00010999,2]
[333198237,1721938240264,-300.34418275,0.00010999,2]
[333198238,1721938240274,-565.23086974,0.00010999,2]
[333198239,1721938240283,-500.0,0.00010999,2]
[333198240,1721938240292,-500.0,0.00010999,2]
[333198241,1721938240302,-500.0,0.00010999,2]
[333198242,1721938240311,-500.0,0.00010999,2]
[333198243,1721938240321,-500.0,0.00010999,2]
[333198244,1721938240331,-500.0,0.00010999,2]
[333198245,1721938240341,-434.97649251,0.00010999,2]
[333198246,1721938240351,-2000.0,0.00010999,2]
[333198247,1721938240361,-372.57351805,0.00010999,2]
[333198248,1721938240371,-500.0,0.00010999,2]
[333198249,1721938240381,-585.63,0.00010999,2]
[333198250,1721938240391,-500.0,0.00010999,2]
[333198251,1721938240401,-3000.0,0.00010999,2]
[333198252,1721938240411,-502.33908338,0.00010999,2]
[333198253,1721938240422,-500.0,0.00010999,2]
[333198254,1721938240431,-574.65564846,0.00010999,2]
[333198256,1721938240441,-500.0,0.00010999,2]
[333198257,1721938240451,-500.0,0.00010999,2]
[333198258,1721938240460,-500.0,0.00010999,2]
[333198259,1721938240470,-500.0,0.00010999,2]
[333198260,1721938240480,-500.0,0.00010999,2]
[333198261,1721938240490,-500.0,0.00010999,2]
[333198262,1721938240499,-500.0,0.00010999,2]
[333198263,1721938240510,-500.0,0.00010999,2]
[333198265,1721938240519,-500.0,0.00010999,2]
[333198267,1721938240529,-500.0,0.00010999,2]
[333198269,1721938240539,-500.0,0.00010999,2]
[333198271,1721938240549,-500.0,0.00010999,2]
[333198273,1721938240558,-500.0,0.00010999,2]
[333198275,1721938240567,-500.0,0.00010999,2]
[333198277,1721938240577,-500.0,0.00010999,2]
[333198279,1721938240587,-500.0,0.00010999,2]
[333198281,1721938240597,-351.09986958,0.00010999,2]
[333198283,1721938240607,-500.0,0.00010999,2]
[333198285,1721938240616,-500.0,0.00010999,2]
[333198287,1721938240625,-500.0,0.00010999,2]
[333198289,1721938240635,-500.0,0.00010999,2]
[333198291,1721938240644,-500.0,0.00010999,2]
[333198293,1721938240654,-183.61,0.00010999,2]
[333198295,1721938240664,-500.0,0.00010999,2]
[333198297,1721938240673,-500.0,0.00010999,2]
[333198299,1721938240682,-500.0,0.00010999,2]
[333198300,1721938240691,-500.0,0.00010999,2]
[333198303,1721938240701,-500.0,0.00010999,2]
[333198305,1721938240710,-405.03,0.00010999,2]
[333198307,1721938240721,-500.0,0.00010999,2]
[333198309,1721938240731,-500.0,0.00010999,2]
[333198311,1721938240740,-500.0,0.00010999,2]
[333198313,1721938240750,-500.0,0.00010999,2]
[333198315,1721938240760,-500.0,0.00010999,2]
[333198316,1721938240770,-500.0,0.00010999,2]
[333198319,1721938240780,-180.98998606,0.00010999,2]
[333198320,1721938240790,-500.0,0.00010999,2]
[333198322,1721938240799,-339.11474092,0.00010999,2]
[333198324,1721938240808,-500.0,0.00010999,2]
[333198326,1721938240818,-500.0,0.00010999,2]
[333198328,1721938240827,-500.0,0.00010999,2]
[333198330,1721938240837,-197.305,0.00010999,2]
[333198332,1721938240846,-200.0,0.00010999,2]
[333198334,1721938240856,-500.0,0.00010999,2]
[333198336,1721938240865,-500.0,0.00010999,2]
[333198338,1721938240875,-500.0,0.00010999,2]
[333198340,1721938240885,-500.0,0.00010999,2]
[333198342,1721938240895,-500.0,0.00010999,2]
[333198344,1721938240905,-500.0,0.00010999,2]
[333198346,1721938240915,-500.0,0.00010999,2]
[333198348,1721938240926,-500.0,0.00010999,2]
[333198350,1721938240938,-500.0,0.00010999,2]
[333198352,1721938240948,-500.0,0.00010999,2]
[333198354,1721938240958,-500.0,0.00010999,2]
[333198356,1721938240968,-500.0,0.00010999,2]
[333198358,1721938240979,-500.0,0.00010999,2]
[333198360,1721938240989,-378.34974504,0.00010999,2]
[333198362,1721938240999,-779.0,0.00011,2]
[333198364,1721938241011,-27915.97444547,0.00011,2]
[333198367,1721938241024,-9756.48499206,0.00011,2]
[333198369,1721938241037,-7141.4883064,0.00011,2]
[333198372,1721938241052,-329.64,0.00011,2]
[333198374,1721938241068,-6498.57811637,0.00011,2]
[333198376,1721938241079,-3118.19999998,0.00011,2]
[333198379,1721938241097,-2410.77014489,0.00011,2]
[333198381,1721938241109,-7181.41932231,0.00011,2]
[333198483,1721938242750,-683.25731271,0.00011,2]
[333198488,1721938242910,-64586.85331275,0.00011,2]
[333198489,1721938242920,-114769.98268259,0.00011,2]
[333198490,1721938243015,-932.18187999,0.00011,2]
[333198491,1721938243069,-310.59400201,0.00011,2]
[333198598,1721938245875,-330.641,0.00010943,2]
[333198610,1721938246397,-1210.3094896,0.00010943,2]
[333198613,1721938246412,-123.2101034,0.00010943,2]
[333198617,1721938246424,-179.28,0.00010959,2]
[333198619,1721938246436,-4314.02519619,0.00011,2]
[333198621,1721938246453,-11751.65552736,0.00011,2]
[333198622,1721938246467,-375.18220522,0.00011,2]
[333198623,1721938246782,-2207.1800953,0.00011,2]
[333198644,1721939431862,-166.66666668,8.219e-05,2]
[333198645,1721939431872,-169.11,8.219e-05,2]
[333198646,1721939431881,-1288.12,8.219e-05,2]
[333198647,1721939431890,-169.56146874,8.638e-05,2]
[333198648,1721939431901,-2863.002849,9.65e-05,2]
[333198649,1721939431910,-300.0,9.699e-05,2]
[333198650,1721939431920,-22890.56961558,9.7e-05,2]
[333198651,1721939431931,-1009.43038442,9.7e-05,2]
[333198652,1721939431940,-250.0,9.895e-05,2]
[333198653,1721939431950,-170.17,9.899e-05,2]
[333198654,1721939431959,-1000.0,9.92e-05,2]
[333198655,1721939431968,-331.74,9.923e-05,2]
[333198656,1721939431977,-1261.27,9.923e-05,2]
[333198657,1721939431987,-3755.56,9.979e-05,2]
[333198658,1721939431996,-5530.05176372,0.0001,2]
[333198659,1721939432005,-210.62162429,0.0001,2]
[333198660,1721939432014,-420.03,0.00010241,2]
[333198661,1721939432024,-856.29,0.00010341,2]
[333198662,1721939432033,-165.04,0.00010378,2]
[333198663,1721939432042,-300.94,0.00010378,2]
[333198664,1721939432051,-165.25,0.00010378,2]
[333198665,1721939432061,-154.48,0.00010378,2]
[333198666,1721939432070,-150.0,0.00010455,2]
[333198667,1721939432079,-1288.12,0.00010456,2]
[333198668,1721939432089,-1058.72,0.00010478,2]
[333198669,1721939432098,-425.58,0.00010478,2]
[333198670,1721939432107,-152.02,0.00010478,2]
[333198671,1721939432116,-709.7,0.00010478,2]
[333198672,1721939432125,-425.58,0.00010478,2]
[333198673,1721939432135,-425.58,0.00010478,2]
[333198674,1721939432145,-420.0,0.00010669,2]
[333198675,1721939432154,-431.57,0.0001067,2]
[333198676,1721939432164,-431.57,0.0001067,2]
[333198677,1721939432173,-431.57,0.0001067,2]
[333198678,1721939432183,-431.57,0.0001067,2]
[333198679,1721939432193,-431.57,0.0001067,2]
[333198680,1721939432202,-2256.61,0.0001067,2]
[333198681,1721939432212,-2256.61,0.0001067,2]
[333198682,1721939432222,-2256.61,0.0001067,2]
[333198683,1721939432231,-15586.6439,0.0001068,2]
[333198684,1721939432240,-431.57,0.00010738,2]
[333198685,1721939432249,-259.4496,0.00010748,2]
[333198686,1721939432261,-2066.1101,0.00010748,2]
[333198687,1721939432274,-1120.18669551,0.0001078,2]
[333198688,1721939432283,-256.6235686,0.0001078,2]
[333198689,1721939432294,-431.57,0.00010789,2]
[333198690,1721939432303,-431.57,0.00010789,2]
[333198691,1721939432315,-431.57,0.00010789,2]
[333198692,1721939432324,-431.57,0.00010789,2]
[333198694,1721939432335,-431.57,0.00010789,2]
[333198696,1721939432344,-431.57,0.00010789,2]
[333198697,1721939432355,-431.57,0.00010789,2]
[333198698,1721939432365,-431.57,0.00010789,2]
[333198699,1721939432375,-431.57,0.0001079,2]
[333198700,1721939432384,-431.57,0.0001079,2]
[333198701,1721939432394,-431.57,0.0001079,2]
[333198702,1721939432404,-431.57,0.0001079,2]
[333198703,1721939432413,-431.57,0.0001079,2]
[333198704,1721939432423,-431.57,0.0001079,2]
[333198705,1721939432432,-431.57,0.0001079,2]
[333198706,1721939432441,-22685.2632,0.00010799,2]
[333198707,1721939432451,-499.99,0.00010799,2]
[333198708,1721939432460,-14487.7952,0.000108,2]
[333198709,1721939432469,-7500.0,0.000108,2]
[333198710,1721939432479,-1002.5699,0.000108,2]
[333198711,1721939432488,-431.57,0.00010838,2]
[333198712,1721939432497,-431.57,0.00010838,2]
[333198713,1721939432507,-431.57,0.00010838,2]
[333198714,1721939432516,-431.57,0.00010838,2]
[333198715,1721939432525,-2382.0,0.00010848,2]
[333198716,1721939432534,-150.0,0.00010848,2]
[333198717,1721939432543,-550.0,0.00010848,2]
[333198718,1721939432553,-3283.0,0.00010848,2]
[333198719,1721939432562,-1994.0,0.00010848,2]
[333198720,1721939432571,-150.0,0.00010848,2]
[333198721,1721939432580,-150.0,0.00010848,2]
[333198722,1721939432590,-1073.0,0.00010848,2]
[333198723,1721939432599,-1663.0,0.00010848,2]
[333198724,1721939432608,-1254.0,0.00010848,2]
[333198725,1721939432618,-362.0,0.00010848,2]
[333198726,1721939432627,-1829.0,0.00010848,2]
[333198727,1721939432637,-5121.0,0.00010848,2]
[333198728,1721939432648,-5828.0,0.00010848,2]
[333198729,1721939432658,-431.57,0.00010879,2]
[333198730,1721939432667,-431.57,0.00010879,2]
[333198731,1721939432676,-431.57,0.00010879,2]
[333198732,1721939432686,-431.57,0.00010889,2]
[333198733,1721939432695,-431.57,0.00010889,2]
[333198734,1721939432704,-431.57,0.00010889,2]